fUSD/lending_fUSD_20250814
["ID","MTS","AMOUNT","RATE_DAILY","PERIOD"]
[379123871,1755151917476,-1508.12,0.00054794,120]
[379123872,1755151917486,-7477.84,0.00054794,120]
[379123873,1755151917496,-1508.12,0.00054794,120]
[379123874,1755151917507,-1508.12,0.00054794,120]
[379123875,1755151917517,-1508.12,0.00054794,120]
[379123876,1755151917527,-400.0,0.00054794,120]
[379123877,1755151917537,-2982.26,0.00054794,120]
[379123878,1755151917547,-1508.12,0.00054794,120]
[379123879,1755151917557,-11358.44,0.00054794,120]
[379123880,1755151917571,-2000.0,0.00054794,30]
[379123881,1755151917580,-1508.12,0.00054794,120]
[379123882,1755151917590,-1508.12,0.00054794,120]
[379123883,1755151917600,-743.9,0.00054794,120]
[379123884,1755151917610,-1508.12,0.00054794,120]
[379123885,1755151917619,-1508.12,0.00054794,120]
[379123886,1755151917631,-1508.12,0.00054794,120]
[379123887,1755151917640,-500.0,0.00054794,120]
[379123888,1755151917650,-1508.12,0.00054794,120]
[379123889,1755151917660,-1508.12,0.00054794,120]
[379123890,1755151917670,-596.58,0.00054794,120]
[379123891,1755151917679,-1508.12,0.00054794,120]
[379123892,1755151917689,-1508.12,0.00054794,120]
[379123893,1755151917699,-920.25,0.00054794,120]
[379123894,1755151917708,-1508.12,0.00054794,120]
[379123895,1755151917718,-1016.73,0.00054794,120]
[379123896,1755151917727,-1508.12,0.00054794,120]
[379123897,1755151917737,-1508.2891864,0.00054794,120]
[379123898,1755151917747,-669.84,0.00054794,120]
[379123899,1755151917756,-400.0,0.00054794,120]
[379123900,1755151917766,-400.0,0.00054794,120]
[379123901,1755151917776,-400.0,0.00054794,120]
[379123902,1755151917786,-4187.8,0.00054794,120]
[379123903,1755151917795,-800.39,0.00054794,120]
[379123904,1755151917805,-4953.23,0.00054794,120]
[379123905,1755151917814,-451.56,0.00054794,120]
[379123906,1755151917824,-2280.27,0.00054794,120]
[379123907,1755151917834,-7813.46,0.00054794,120]
[379123908,1755151917846,-3989.57,0.00054794,120]
[379123909,1755151917855,-4004.38,0.00054794,120]
[379123910,1755151917865,-400.0,0.00054794,120]
[379123911,1755151917875,-4559.92,0.00054794,120]
[379123912,1755151917884,-505.94,0.00054794,120]
[379123913,1755151917894,-4215.8,0.00054794,120]
[379123914,1755151917904,-3221.19,0.00054794,120]
[379123915,1755151917913,-1621.03,0.00054794,120]
[379123916,1755151917923,-400.0,0.00054794,120]
[379123917,1755151917933,-1566.01,0.00054794,120]
[379123918,1755151917948,-400.0,0.00054794,120]
[379123919,1755151917957,-400.0,0.00054794,120]
[379123920,1755151917967,-400.0,0.00054794,120]
[379123921,1755151918191,-5315.13,0.00054794,120]
[379123922,1755151918200,-400.0,0.00054794,120]
[379123923,1755151918210,-400.0,0.00054794,120]
[379123924,1755151918220,-2645.16,0.00054794,120]
[379123925,1755151918229,-4739.44,0.00054794,120]
[379123926,1755151918238,-872.84,0.00054794,120]
[379123927,1755151918248,-400.0,0.00054794,120]
[379123928,1755151918258,-3134.41,0.00054794,120]
[379123929,1755151918268,-453.47,0.00054794,120]
[379123930,1755151918277,-2802.71,0.00054794,120]
[379123931,1755151918286,-4982.39,0.00054794,120]
[379123932,1755151918296,-400.0,0.00054794,120]
[379123933,1755151918305,-400.0,0.00054794,120]
[379123934,1755151918314,-2950.03,0.00054794,120]
[379123935,1755151918323,-400.0,0.00054794,120]
[379123936,1755151918333,-551.28980038,0.00054794,120]
[379123937,1755151918342,-590.51,0.00054794,120]
[379123938,1755151918351,-6376.52,0.00054794,120]
[379123939,1755151918360,-2059.05,0.00054794,120]
[379123940,1755151918369,-400.0,0.00054794,120]
[379123941,1755151918379,-2515.61,0.00054794,120]
[379123942,1755151918389,-24409.92,0.00054794,120]
[379123943,1755151918398,-400.0,0.00054794,120]
[379123944,1755151918407,-400.0,0.00054794,120]
[379123945,1755151918417,-400.0,0.00054794,120]
[379123946,1755151918426,-400.0,0.00054794,120]
[379123947,1755151918436,-6141.07,0.00054794,120]
[379123948,1755151918445,-3350.54,0.00054794,120]
[379123949,1755151918454,-411.47,0.00054794,120]
[379123950,1755151918464,-400.0,0.00054794,120]
[379123951,1755151918473,-1387.3,0.00054794,120]
[379123952,1755151918483,-1511.8,0.00054794,120]
[379123953,1755151918491,-2495.29,0.00054794,120]
[379123954,1755151918499,-911.65,0.00054794,120]
[379123955,1755151918508,-400.0,0.00054794,120]
[379123956,1755151918517,-1798.23,0.00054794,120]
[379123957,1755151918526,-5853.35,0.00054794,120]
[379123958,1755151918536,-400.0,0.00054794,120]
[379123959,1755151918545,-400.0,0.00054794,120]
[379123960,1755151918554,-471.59,0.00054794,120]
[379123961,1755151918563,-400.0,0.00054794,120]
[379123962,1755151918572,-291.16747412,0.00054794,120]
[379123963,1755151918581,-400.0,0.00054794,120]
[379123964,1755151918590,-501.43678025,0.00054794,120]
[379123965,1755151918599,-588.51,0.00054794,120]
[379123966,1755151918608,-400.0,0.00054794,120]
[379123967,1755151918617,-4554.64,0.00054794,120]
[379123968,1755151918627,-400.0,0.00054794,120]
[379123969,1755151918636,-825.93,0.00054794,120]
[379123970,1755151918645,-400.0,0.00054794,120]
[379123971,1755151918654,-15433.92,0.00054794,120]
[379123972,1755151918664,-1081.04,0.00054794,120]
[379123973,1755151918674,-1936.66,0.00054794,120]
[379123974,1755151918683,-2546.25,0.00054794,120]
[379123975,1755151918693,-400.0,0.00054794,120]
[379123976,1755151918702,-3500.0,0.00054794,120]
[379123977,1755151918711,-400.0,0.00054794,120]
[379123978,1755151918721,-2830.56,0.00054794,120]
[379123979,1755151918730,-400.0,0.00054794,120]
[379123980,1755151918739,-400.0,0.00054794,120]
[379123981,1755151918748,-5061.69,0.00054794,120]
[379123982,1755151918758,-5480.14,0.00054794,120]
[379123983,1755151918768,-400.0,0.00054794,120]
[379123984,1755151918778,-400.0,0.00054794,120]
[379123985,1755151918786,-400.0,0.00054794,120]
[379123986,1755151918795,-189.83123576,0.00054794,120]
[379123987,1755151918804,-400.0,0.00054794,120]
[379123988,1755151918813,-2644.18,0.00054794,120]
[379123989,1755151918823,-500.0,0.00054794,120]
[379123990,1755151918832,-400.0,0.00054794,120]
[379123991,1755151918842,-887.45,0.00054794,120]
[379123992,1755151918851,-400.0,0.00054794,120]
[379123993,1755151918860,-400.0,0.00054794,120]
[379123994,1755151918870,-3849.42,0.00054794,120]
[379123995,1755151918880,-400.0,0.00054794,120]
[379123996,1755151918890,-400.0,0.00054794,120]
[379123997,1755151918900,-400.0,0.00054794,120]
[379123998,1755151918909,-400.0,0.00054794,120]
[379123999,1755151918919,-1171.88,0.00054794,15]
[379124000,1755151918928,-400.0,0.00054794,120]
[379124001,1755151918940,-946.02,0.00054794,30]
[379124002,1755151918950,-760.13,0.00054794,120]
[379124003,1755151918959,-641.6,0.00054794,120]
[379124004,1755151918969,-400.0,0.00054794,120]
[379124005,1755151918979,-3015.83,0.00054794,120]
[379124006,1755151918988,-400.0,0.00054794,120]
[379124007,1755151918997,-1408.96,0.00054794,120]
[379124008,1755151919007,-2525.64,0.00054794,120]
[379124009,1755151919016,-400.0,0.00054794,120]
[379124010,1755151919026,-400.0,0.00054794,120]
[379124011,1755151919036,-698.37,0.00054794,120]
[379124012,1755151919045,-1796.88,0.00054794,120]
[379124013,1755151919054,-400.0,0.00054794,120]
[379124014,1755151919063,-400.0,0.00054794,120]
[379124015,1755151919072,-6675.24,0.00054794,120]
[379124016,1755151919082,-400.0,0.00054794,120]
[379124017,1755151919091,-400.0,0.00054794,120]
[379124018,1755151919100,-818.48,0.00054794,120]
[379124019,1755151919110,-2362.21,0.00054794,120]
[379124020,1755151919120,-2836.21,0.00054794,120]
[379124021,1755151919131,-400.0,0.00054794,2]
[379124022,1755151919141,-400.0,0.00054794,120]
[379124023,1755151919151,-5613.39,0.00054794,120]
[379124024,1755151919160,-400.0,0.00054794,120]
[379124025,1755151919170,-2693.4,0.00054794,120]
[379124026,1755151919179,-1980.06,0.00054794,120]
[379124027,1755151919188,-602.91,0.00054794,120]
[379124028,1755151919198,-145578.49390215,0.00054794,120]
[379124029,1755151919207,-450.22,0.00054794,120]
[379124030,1755151919216,-644.83,0.00054794,120]
[379124031,1755151919226,-400.0,0.00054794,120]
[379124032,1755151919235,-400.0,0.00054794,120]
[379124033,1755151919244,-496.5,0.00054794,120]
[379124034,1755151919253,-400.0,0.00054794,120]
[379124035,1755151919262,-726.37,0.00054794,120]
[379124036,1755151919272,-10196.5,0.00054794,120]
[379124037,1755151919281,-2203.33,0.00054794,120]
[379124038,1755151919291,-895.57,0.00054794,120]
[379124039,1755151919301,-400.0,0.00054794,120]
[379124040,1755151919312,-3273.53,0.00054794,120]
[379124041,1755151919321,-400.0,0.00054794,120]
[379124042,1755151919330,-500.0,0.00054794,120]
[379124043,1755151919340,-400.0,0.00054794,120]
[379124044,1755151919349,-500.0,0.00054794,120]
[379124045,1755151919358,-2854.6,0.00054794,120]
[379124046,1755151919367,-500.0,0.00054794,120]
[379124047,1755151919377,-4023.71,0.00054794,120]
[379124048,1755151919386,-2219.19,0.00054794,120]
[379124049,1755151919395,-500.0,0.00054794,120]
[379124050,1755151919405,-3720.23,0.00054794,120]
[379124051,1755151919414,-500.0,0.00054794,120]
[379124052,1755151919423,-500.0,0.00054794,120]
[379124053,1755151919432,-400.0,0.00054794,120]
[379124054,1755151919441,-500.0,0.00054794,120]
[379124055,1755151919450,-1409.35,0.00054794,120]
[379124056,1755151919459,-1179.74,0.00054794,120]
[379124057,1755151919469,-500.0,0.00054794,120]
[379124058,1755151919478,-400.0,0.00054794,120]
[379124059,1755151919487,-500.0,0.00054794,120]
[379124060,1755151919497,-7528.34,0.00054794,120]
[379124061,1755151919508,-500.0,0.00054794,120]
[379124062,1755151919517,-500.0,0.00054794,120]
[379124063,1755151919526,-740.61,0.00054794,120]
[379124064,1755151919536,-500.0,0.00054794,120]
[379124065,1755151919546,-400.0,0.00054794,120]
[379124066,1755151919555,-855.78,0.00054794,120]
[379124067,1755151919564,-500.0,0.00054794,120]
[379124068,1755151919573,-9039.56,0.00054794,120]
[379124069,1755151919583,-1358.25,0.00054794,120]
[379124070,1755151919593,-500.0,0.00054794,120]
[379124071,1755151919603,-500.0,0.00054794,120]
[379124072,1755151919612,-400.0,0.00054794,120]
[379124073,1755151919622,-500.0,0.00054794,120]
[379124074,1755151919632,-500.0,0.00054794,120]
[379124075,1755151919641,-500.0,0.00054794,120]
[379124076,1755151919651,-500.0,0.00054794,120]
[379124077,1755151919662,-1286.15,0.00054794,120]
[379124078,1755151919672,-913.18,0.00054794,120]
[379124079,1755151919682,-500.0,0.00054794,120]
[379124080,1755151919691,-169.73589464,0.00054794,120]
[379124081,1755151919701,-1126.28,0.00054794,120]
[379124082,1755151919711,-5267.57,0.00054794,120]
[379124083,1755151919720,-873.98,0.00054794,120]
[379124084,1755151919730,-771.36,0.00054794,120]
[379124085,1755151919739,-771.36,0.00054794,120]
[379124086,1755151919748,-771.36,0.00054794,120]
[379124087,1755151919758,-6302.06,0.00054794,120]
[379124088,1755151919767,-771.36,0.00054794,120]
[379124089,1755151919777,-400.0,0.00054794,120]
[379124090,1755151919788,-771.36,0.00054794,120]
[379124091,1755151919799,-771.36,0.00054794,120]
[379124092,1755151919810,-771.36,0.00054794,120]
[379124093,1755151919820,-771.36,0.00054794,120]
[379124094,1755151919829,-771.36,0.00054794,120]
[379124095,1755151919839,-771.36,0.00054794,120]
[379124096,1755151919848,-5741.44,0.00054794,120]
[379124097,1755151919858,-771.36,0.00054794,120]
[379124098,1755151919867,-2196.88,0.00054794,120]
[379124099,1755151919877,-771.36,0.00054794,120]
[379124100,1755151919887,-771.36,0.00054794,120]
[379124101,1755151919898,-824.38,0.00054794,120]
[379124102,1755151919917,-771.36,0.00054794,120]
[379124103,1755151919938,-824.38,0.00054794,120]
[379124104,1755151919959,-400.0,0.00054794,120]
[379124105,1755151919983,-771.36,0.00054794,120]
[379124106,1755151919996,-836.31,0.00054794,120]
[379124107,1755151920005,-824.38,0.00054794,120]
[379124108,1755151920015,-771.36,0.00054794,120]
[379124109,1755151920024,-824.38,0.00054794,120]
[379124110,1755151920033,-824.38,0.00054794,120]
[379124111,1755151920042,-771.36,0.00054794,120]
[379124112,1755151920053,-824.38,0.00054794,120]
[379124113,1755151920063,-771.36,0.00054794,120]
[379124114,1755151920072,-1080.9,0.00054794,120]
[379124115,1755151920082,-824.38,0.00054794,120]
[379124116,1755151920091,-771.36,0.00054794,120]
[379124117,1755151920100,-400.0,0.00054794,120]
[379124118,1755151920110,-824.38,0.00054794,120]
[379124119,1755151920120,-771.36,0.00054794,120]
[379124120,1755151920129,-824.38,0.00054794,120]
[379124121,1755151920139,-771.36,0.00054794,120]
[379124122,1755151920148,-824.38,0.00054794,120]
[379124123,1755151920157,-771.36,0.00054794,120]
[379124124,1755151920165,-500.0,0.00054794,120]
[379124125,1755151920175,-824.38,0.00054794,120]
[379124126,1755151920184,-400.0,0.00054794,120]
[379124127,1755151920194,-500.0,0.00054794,120]
[379124128,1755151920204,-771.36,0.00054794,120]
[379124129,1755151920213,-400.0,0.00054794,120]
[379124130,1755151920223,-500.0,0.00054794,120]
[379124131,1755151920232,-771.47400311,0.00054794,120]
[379124132,1755151920242,-824.38,0.00054794,120]
[379124133,1755151920251,-500.0,0.00054794,120]
[379124134,1755151920261,-824.38,0.00054794,120]
[379124135,1755151920271,-500.0,0.00054794,120]
[379124136,1755151920280,-824.38,0.00054794,120]
[379124137,1755151920290,-846.29,0.00054794,120]
[379124138,1755151920300,-500.0,0.00054794,120]
[379124139,1755151920309,-824.38,0.00054794,120]
[379124140,1755151920329,-500.0,0.00054794,120]
[379124141,1755151920349,-824.38,0.00054794,120]
[379124142,1755151920359,-500.0,0.00054794,120]
[379124143,1755151920369,-772.3,0.00054794,120]
[379124144,1755151920379,-824.38,0.00054794,120]
[379124145,1755151920389,-500.0,0.00054794,120]
[379124146,1755151920398,-824.38,0.00054794,120]
[379124147,1755151920407,-500.0,0.00054794,120]
[379124148,1755151920416,-824.38,0.00054794,120]
[379124149,1755151920425,-500.0,0.00054794,120]
[379124150,1755151920435,-824.38,0.00054794,120]
[379124151,1755151920444,-483.77,0.00054794,120]
[379124152,1755151920454,-500.0,0.00054794,120]
[379124153,1755151920463,-824.38,0.00054794,120]
[379124154,1755151920473,-400.0,0.00054794,120]
[379124155,1755151920483,-824.38,0.00054794,120]
[379124156,1755151920492,-940.13,0.00054794,120]
[379124157,1755151920502,-613.25494668,0.00054794,120]
[379124158,1755151920511,-824.38,0.00054794,120]
[379124159,1755151920520,-8713.58,0.00054794,120]
[379124160,1755151920530,-824.5947067,0.00054794,120]
[379124161,1755151920540,-3151.1,0.00054794,120]
[379124162,1755151920550,-400.0,0.00054794,120]
[379124163,1755151920560,-4985.52,0.00054794,120]
[379124164,1755151920570,-1236.08,0.00054794,120]
[379124165,1755151920580,-3542.43,0.00054794,120]
[379124166,1755151920589,-400.0,0.00054794,120]
[379124167,1755151920599,-406.52007179,0.00054794,120]
[379124168,1755151920608,-1557.15,0.00054794,120]
[379124169,1755151920618,-400.0,0.00054794,120]
[379124170,1755151920629,-400.0,0.00054794,120]
[379124171,1755151920639,-2296.43,0.00054794,120]
[379124172,1755151920648,-3080.17,0.00054794,120]
[379124173,1755151920658,-498.83,0.00054794,120]
[379124174,1755151920667,-400.0,0.00054794,120]
[379124175,1755151920677,-612.63,0.00054794,120]
[379124176,1755151920686,-400.0,0.00054794,120]
[379124177,1755151920695,-400.0,0.00054794,120]
[379124178,1755151920705,-400.0,0.00054794,120]
[379124179,1755151920714,-473.74,0.00054794,120]
[379124180,1755151920723,-1247.56,0.00054794,120]
[379124181,1755151920731,-1088.15,0.00054794,120]
[379124182,1755151920741,-1104.52,0.00054794,120]
[379124183,1755151920750,-400.0,0.00054794,120]
[379124184,1755151920759,-400.0,0.00054794,120]
[379124185,1755151920769,-3479.82,0.00054794,120]
[379124186,1755151920778,-400.0,0.00054794,120]
[379124187,1755151920788,-7460.0,0.00054794,120]
[379124188,1755151920797,-3149.61,0.00054794,120]
[379124189,1755151920806,-872.46,0.00054794,120]
[379124190,1755151920815,-1829.41,0.00054794,120]
[379124191,1755151920824,-400.0,0.00054794,120]
[379124192,1755151920834,-978.49,0.00054794,120]
[379124193,1755151920843,-400.0,0.00054794,120]
[379124194,1755151920852,-400.0,0.00054794,120]
[379124195,1755151920862,-5000.0,0.00054794,120]
[379124196,1755151920871,-4232.69,0.00054794,120]
[379124197,1755151920883,-400.0,0.00054794,120]
[379124198,1755151920892,-36657.61,0.00054794,120]
[379124199,1755151920901,-9167.46,0.00054794,120]
[379124200,1755151920911,-599.72,0.00054794,120]
[379124201,1755151920920,-839.46,0.00054794,120]
[379124202,1755151920930,-10290.85,0.00054794,120]
[379124203,1755151920942,-400.0,0.00054794,120]
[379124204,1755151920952,-400.0,0.00054794,120]
[379124205,1755151920961,-400.0,0.00054794,120]
[379124206,1755151920971,-4451.7,0.00054794,120]
[379124207,1755151920981,-4656.17,0.00054794,120]
[379124208,1755151920990,-826.42,0.00054794,120]
[379124209,1755151921000,-1396.12,0.00054794,120]
[379124210,1755151921009,-400.0,0.00054794,120]
[379124211,1755151921019,-2472.59,0.00054794,120]
[379124212,1755151921029,-400.0,0.00054794,120]
[379124213,1755151921038,-400.0,0.00054794,120]
[379124214,1755151921047,-2111.39,0.00054794,120]
[379124215,1755151921057,-1153.14,0.00054794,120]
[379124216,1755151921067,-1112.52,0.00054794,120]
[379124217,1755151921077,-6686.12,0.00054794,120]
[379124218,1755151921086,-1656.84,0.00054794,120]
[379124219,1755151921096,-400.0,0.00054794,120]
[379124220,1755151921105,-2300.04,0.00054794,120]
[379124221,1755151921115,-2436.12,0.00054794,120]
[379124222,1755151921126,-400.0,0.00054794,120]
[379124223,1755151921140,-400.0,0.00054794,120]
[379124224,1755151921156,-7538.62,0.00054794,120]
[379124225,1755151921168,-400.0,0.00054794,120]
[379124226,1755151921178,-2547.79,0.00054794,120]
[379124227,1755151921188,-400.0,0.00054794,120]
[379124228,1755151921198,-400.0,0.00054794,120]
[379124229,1755151921208,-400.0,0.00054794,120]
[379124230,1755151921218,-415.59,0.00054794,120]
[379124231,1755151921228,-400.0,0.00054794,120]
[379124232,1755151921237,-400.0,0.00054794,120]
[379124233,1755151921247,-648.82,0.00054794,120]
[379124234,1755151921257,-1591.41,0.00054794,120]
[379124235,1755151921266,-10426.92,0.00054794,120]
[379124236,1755151921276,-2059.51,0.00054794,120]
[379124237,1755151921286,-1170.56,0.00054794,120]
[379124238,1755151921295,-2784.28,0.00054794,120]
[379124239,1755151921305,-400.0,0.00054794,120]
[379124240,1755151921315,-400.0,0.00054794,120]
[379124241,1755151921324,-2489.1,0.00054794,120]
[379124242,1755151921333,-751.77,0.00054794,120]
[379124243,1755151921343,-400.0,0.00054794,120]
[379124244,1755151921353,-400.0,0.00054794,120]
[379124245,1755151921363,-2948.39,0.00054794,120]
[379124246,1755151921372,-400.0,0.00054794,120]
[379124247,1755151921385,-400.0,0.00054794,120]
[379124248,1755151921395,-5409.12,0.00054794,120]
[379124249,1755151921405,-504.98,0.00054794,120]
[379124250,1755151921414,-17310.16,0.00054794,120]
[379124251,1755151921425,-400.0,0.00054794,120]
[379124252,1755151921435,-4114.42,0.00054794,120]
[379124253,1755151921445,-1068.05,0.00054794,120]
[379124254,1755151921455,-452.51,0.00054794,120]
[379124255,1755151921465,-400.0,0.00054794,120]
[379124256,1755151921475,-2715.86,0.00054794,120]
[379124257,1755151921485,-3860.16,0.00054794,120]
[379124258,1755151921496,-475.06,0.00054794,120]
[379124259,1755151921506,-13525.35,0.00054794,120]
[379124260,1755151921516,-400.0,0.00054794,120]
[379124261,1755151921526,-2573.06,0.00054794,120]
[379124262,1755151921537,-400.0,0.00054794,120]
[379124263,1755151921547,-752.1,0.00054794,120]
[379124264,1755151921556,-650.15,0.00054794,120]
[379124265,1755151921566,-400.0,0.00054794,120]
[379124266,1755151921575,-8342.38,0.00054794,120]
[379124267,1755151921585,-400.0,0.00054794,120]
[379124268,1755151921595,-1926.39,0.00054794,120]
[379124269,1755151921604,-4423.6,0.00054794,120]
[379124270,1755151921614,-4528.84,0.00054794,120]
[379124271,1755151921623,-5780.73,0.00054794,120]
[379124272,1755151921633,-400.0,0.00054794,120]
[379124273,1755151921643,-790.78,0.00054794,120]
[379124274,1755151921653,-599.61,0.00054794,120]
[379124275,1755151921663,-3920.94,0.00054794,120]
[379124276,1755151921673,-818.74,0.00054794,120]
[379124277,1755151921683,-400.0,0.00054794,120]
[379124278,1755151921692,-400.0,0.00054794,120]
[379124279,1755151921702,-400.0,0.00054794,120]
[379124280,1755151921711,-694.14,0.00054794,120]
[379124281,1755151921721,-9441.11,0.00054794,120]
[379124282,1755151921730,-400.0,0.00054794,120]
[379124283,1755151921740,-6783.59,0.00054794,120]
[379124284,1755151921751,-400.0,0.00054794,120]
[379124285,1755151921760,-400.0,0.00054794,120]
[379124286,1755151921769,-872.63,0.00054794,120]
[379124287,1755151921779,-6420.84,0.00054794,120]
[379124288,1755151921789,-5331.19,0.00054794,120]
[379124289,1755151921799,-2010.65,0.00054794,120]
[379124290,1755151921809,-811.64,0.00054794,120]
[379124291,1755151921819,-2498.36,0.00054794,120]
[379124292,1755151921829,-500.0,0.00054794,120]
[379124293,1755151921838,-400.0,0.00054794,120]
[379124294,1755151921848,-500.0,0.00054794,120]
[379124295,1755151921858,-400.0,0.00054794,120]
[379124296,1755151921867,-500.0,0.00054794,120]
[379124297,1755151921878,-500.0,0.00054794,120]
[379124298,1755151921887,-9168.28,0.00054794,120]
[379124299,1755151921897,-500.0,0.00054794,120]
[379124300,1755151921907,-500.0,0.00054794,120]
[379124301,1755151921916,-500.0,0.00054794,120]
[379124302,1755151921926,-500.0,0.00054794,120]
[379124303,1755151921938,-400.0,0.00054794,120]
[379124304,1755151921950,-500.0,0.00054794,120]
[379124305,1755151921960,-500.0,0.00054794,120]
[379124306,1755151921970,-7070.73,0.00054794,120]
[379124307,1755151921981,-2948.12,0.00054794,120]
[379124308,1755151921991,-400.0,0.00054794,120]
[379124309,1755151922001,-500.0,0.00054794,120]
[379124310,1755151922012,-500.0,0.00054794,120]
[379124311,1755151922023,-500.0,0.00054794,120]
[379124312,1755151922033,-500.0,0.00054794,120]
[379124313,1755151922044,-500.0,0.00054794,120]
[379124314,1755151922054,-2842.56,0.00054794,120]
[379124315,1755151922064,-400.0,0.00054794,120]
[379124316,1755151922074,-500.0,0.00054794,120]
[379124317,1755151922084,-500.0,0.00054794,120]
[379124318,1755151922094,-500.0,0.00054794,120]
[379124319,1755151922104,-500.0,0.00054794,120]
[379124320,1755151922114,-500.0,0.00054794,120]
[379124321,1755151922124,-396.6414079,0.00054794,120]
[379124322,1755151922139,-736.79,0.00054794,120]
[379124323,1755151922149,-500.0,0.00054794,120]
[379124324,1755151922159,-1711.42,0.00054794,120]
[379124325,1755151922169,-500.0,0.00054794,120]
[379124326,1755151922179,-874.09,0.00054794,120]
[379124327,1755151922188,-281.40765803,0.00054794,120]
[379124328,1755151922198,-2202.55,0.00054794,120]
[379124329,1755151922208,-1097.51,0.00054794,120]
[379124330,1755151922219,-400.0,0.00054794,120]
[379124331,1755151922229,-992.79,0.00054794,120]
[379124332,1755151922239,-400.0,0.00054794,120]
[379124333,1755151922248,-3921.73,0.00054794,120]
[379124334,1755151922258,-4466.45,0.00054794,120]
[379124335,1755151922268,-207.94031362,0.00054794,120]
[379124336,1755151922279,-4360.7,0.00054794,120]
[379124337,1755151922289,-2674.86,0.00054794,120]
[379124338,1755151922299,-8858.01,0.00054794,120]
[379124339,1755151922309,-400.0,0.00054794,120]
[379124340,1755151922320,-5381.35,0.00054794,120]
[379124341,1755151922330,-400.0,0.00054794,120]
[379124342,1755151922341,-400.0,0.00054794,120]
[379124343,1755151922351,-7523.38,0.00054794,120]
[379124344,1755151922361,-7710.14,0.00054794,120]
[379124345,1755151922372,-400.0,0.00054794,120]
[379124346,1755151922386,-400.0,0.00054794,120]
[379124347,1755151922397,-1401.96,0.00054794,120]
[379124348,1755151922407,-400.0,0.00054794,120]
[379124349,1755151922417,-3793.94,0.00054794,120]
[379124350,1755151922428,-1647.39,0.00054794,120]
[379124351,1755151922438,-400.0,0.00054794,120]
[379124352,1755151922448,-2318.14,0.00054794,120]
[379124353,1755151922459,-833.51,0.00054794,120]
[379124354,1755151922469,-1000.47,0.00054794,120]
[379124355,1755151922481,-549.79,0.00054794,120]
[379124356,1755151922490,-400.0,0.00054794,120]
[379124357,1755151922501,-501.83,0.00054794,120]
[379124358,1755151922511,-2174.89,0.00054794,120]
[379124359,1755151922522,-2585.46,0.00054794,120]
[379124360,1755151922532,-400.0,0.00054794,120]
[379124361,1755151922543,-455.55,0.00054794,120]
[379124362,1755151922553,-2537.74,0.00054794,120]
[379124363,1755151922563,-2504.76,0.00054794,120]
[379124364,1755151922574,-400.0,0.00054794,120]
[379124365,1755151922584,-4596.94,0.00054794,120]
[379124366,1755151922595,-4941.19,0.00054794,120]
[379124367,1755151922606,-7050.28,0.00054794,120]
[379124368,1755151922616,-6645.09,0.00054794,120]
[379124369,1755151922627,-500.0,0.00054794,120]
[379124370,1755151922637,-500.0,0.00054794,120]